[Event "Hull 4NCL GM Tournament"]
[Site "Hull University, Hull, UK"]
[Date "2021.10.23"]
[Round "7.3"]
[White "Royal, Shreyas"]
[Black "Wadsworth, Matthew J"]
[Result "0-1"]
[TimeControl "90+30"]
[WhiteElo "2226"]
[BlackElo "2425"]

1. d4 {[%clk 01:30:57]} {[%emt 00:00:01]} Nf6 {[%clk 01:26:28]} {[%emt
00:04:32]} 2. c4 {[%clk 01:31:18]} {[%emt 00:00:08]} c5 {[%clk 01:26:51]}
{[%emt 00:00:08]} 3. d5 {[%clk 01:31:42]} {[%emt 00:00:06]} e6 {[%clk
01:27:18]} {[%emt 00:00:04]} 4. Nc3 {[%clk 01:31:56]} {[%emt 00:00:16]} exd5
{[%clk 01:27:43]} {[%emt 00:00:05]} 5. cxd5 {[%clk 01:32:21]} {[%emt 00:00:04]}
d6 {[%clk 01:28:08]} {[%emt 00:00:06]} 6. Nf3 {[%clk 01:32:32]} {[%emt
00:00:19]} g6 {[%clk 01:28:34]} {[%emt 00:00:04]} 7. Bf4 {[%clk 01:32:55]}
{[%emt 00:00:07]} a6 {[%clk 01:28:59]} {[%emt 00:00:06]} 8. a4 {[%clk
01:33:21]} {[%emt 00:00:04]} Bg7 {[%clk 01:29:22]} {[%emt 00:00:07]} 9. h3
{[%clk 01:33:32]} {[%emt 00:00:18]} O-O {[%clk 01:29:27]} {[%emt 00:00:25]} 10.
e3 {[%clk 01:33:46]} {[%emt 00:00:16]} Qe7 {[%clk 01:29:50]} {[%emt 00:00:07]}
11. Be2 {[%clk 01:33:59]} {[%emt 00:00:17]} Nbd7 {[%clk 01:30:09]} {[%emt
00:00:10]} 12. O-O {[%clk 01:34:22]} {[%emt 00:00:07]} Ne8 {[%clk 01:30:32]}
{[%emt 00:00:07]} 13. Re1 {[%clk 01:34:32]} {[%emt 00:00:20]} Rb8 {[%clk
01:30:05]} {[%emt 00:00:57]} 14. e4 {[%clk 01:30:29]} {[%emt 00:04:33]} Ne5
{[%clk 01:30:22]} {[%emt 00:00:12]} 15. Nxe5 {[%clk 01:27:36]} {[%emt
00:03:23]} Bxe5 {[%clk 01:30:47]} {[%emt 00:00:05]} 16. Qd2 {[%clk 01:26:55]}
{[%emt 00:01:12]} Bd7 {[%clk 01:29:14]} {[%emt 00:02:04]} 17. Bxe5 {[%clk
01:15:16]} {[%emt 00:12:09]} Qxe5 {[%clk 01:29:38]} {[%emt 00:00:05]} 18. Rad1
{[%clk 01:15:38]} {[%emt 00:00:07]} g5 {[%clk 01:29:17]} {[%emt 00:00:52]} 19.
Bf1 {[%clk 01:04:38]} {[%emt 00:11:30]} b5 {[%clk 01:22:35]} {[%emt 00:07:13]}
20. axb5 {[%clk 01:04:06]} {[%emt 00:01:02]} axb5 {[%clk 01:23:03]} {[%emt
00:00:01]} 21. Re3 {[%clk 01:03:35]} {[%emt 00:01:01]} Ng7 {[%clk 01:23:02]}
{[%emt 00:00:32]} 22. b4 {[%clk 01:02:14]} {[%emt 00:01:51]} h6 {[%clk
01:20:42]} {[%emt 00:02:49]} 23. g3 {[%clk 00:57:10]} {[%emt 00:05:33]} h5
{[%clk 01:02:09]} {[%emt 00:19:03]} 24. Ne2 {[%clk 00:53:54]} {[%emt 00:03:45]}
g4 {[%clk 01:02:17]} {[%emt 00:00:23]} 25. hxg4 {[%clk 00:52:19]} {[%emt
00:02:05]} hxg4 {[%clk 01:02:41]} {[%emt 00:00:07]} 26. Nf4 {[%clk 00:52:43]}
{[%emt 00:00:05]} c4 {[%clk 01:03:02]} {[%emt 00:00:10]} 27. Be2 {[%clk
00:43:29]} {[%emt 00:09:44]} Ra8 {[%clk 01:00:04]} {[%emt 00:03:28]} 28. Qe1
{[%clk 00:39:50]} {[%emt 00:04:08]} Ra2 {[%clk 00:58:26]} {[%emt 00:02:08]} 29.
Kg2 {[%clk 00:40:06]} {[%emt 00:00:14]} Rfa8 {[%clk 00:56:04]} {[%emt
00:02:53]} 30. Qh1 {[%clk 00:40:12]} {[%emt 00:00:23]} Qg5 {[%clk 00:53:35]}
{[%emt 00:03:00]} 31. Re1 {[%clk 00:39:14]} {[%emt 00:01:28]} Ne8 {[%clk
00:38:04]} {[%emt 00:16:00]} 32. Bd1 {[%clk 00:34:47]} {[%emt 00:04:58]} R8a3
{[%clk 00:38:18]} {[%emt 00:00:17]} 33. Rxa3 {[%clk 00:32:18]} {[%emt
00:02:59]} Rxa3 {[%clk 00:38:46]} {[%emt 00:00:01]} 34. Bc2 {[%clk 00:32:36]}
{[%emt 00:00:12]} Nf6 {[%clk 00:35:33]} {[%emt 00:03:43]} 35. Qh2 {[%clk
00:28:39]} {[%emt 00:04:27]} Ra2 {[%clk 00:30:49]} {[%emt 00:05:14]} 36. Rh1
{[%clk 00:27:21]} {[%emt 00:01:47]} Kf8 {[%clk 00:29:39]} {[%emt 00:01:41]} 37.
Qh8+ {[%clk 00:26:42]} {[%emt 00:01:09]} Ke7 {[%clk 00:29:38]} {[%emt
00:00:31]} 38. Bb1 {[%clk 00:26:29]} {[%emt 00:00:43]} Rb2 {[%clk 00:29:24]}
{[%emt 00:00:44]} 39. e5 {[%clk 00:13:00]} {[%emt 00:13:59]} Qxe5 {[%clk
00:29:22]} {[%emt 00:00:32]} 40. Qg7 {[%clk 00:12:37]} {[%emt 00:00:52]} Rxf2+
{[%clk 00:29:28]} {[%emt 00:00:24]} 41. Kxf2 {[%clk 00:12:49]} {[%emt
00:00:18]} Ne4+ {[%clk 00:29:57]} {[%emt 00:00:01]} 42. Bxe4 {[%clk 00:13:07]}
{[%emt 00:00:12]} Qxg7 {[%clk 00:30:21]} {[%emt 00:00:05]} 43. Ne2 {[%clk
00:12:41]} {[%emt 00:00:57]} Qf6+ {[%clk 00:29:51]} {[%emt 00:01:00]} 44. Ke3
{[%clk 00:13:06]} {[%emt 00:00:07]} Bf5 {[%clk 00:29:36]} {[%emt 00:00:45]} 45.
Bg2 {[%clk 00:12:16]} {[%emt 00:01:19]} Qe5+ {[%clk 00:29:47]} {[%emt
00:00:20]} 46. Kf2 {[%clk 00:12:34]} {[%emt 00:00:12]} Qb2 {[%clk 00:29:53]}
{[%emt 00:00:24]} 0-1

[Event "Hull 4NCL GM Tournament"]
[Site "Hull University, Hull, UK"]
[Date "2021.10.23"]
[Round "7.4"]
[White "Fodor, Tamas Jr."]
[Black "Murphy, Conor E"]
[Result "1/2-1/2"]
[TimeControl "90+30"]
[WhiteElo "2524"]
[BlackElo "2428"]

1. d4 {[%clk 01:30:52]} {[%emt 00:00:05]} d5 {[%clk 01:26:41]} {[%emt
00:04:21]} 2. c4 {[%clk 01:31:16]} {[%emt 00:00:05]} e6 {[%clk 01:27:06]}
{[%emt 00:00:04]} 3. Nc3 {[%clk 01:31:42]} {[%emt 00:00:05]} Nf6 {[%clk
01:26:58]} {[%emt 00:00:37]} 4. cxd5 {[%clk 01:32:05]} {[%emt 00:00:07]} exd5
{[%clk 01:27:21]} {[%emt 00:00:07]} 5. Bg5 {[%clk 01:32:28]} {[%emt 00:00:07]}
c6 {[%clk 01:27:35]} {[%emt 00:00:15]} 6. Qc2 {[%clk 01:32:16]} {[%emt
00:00:42]} h6 {[%clk 01:25:56]} {[%emt 00:02:09]} 7. Bh4 {[%clk 01:31:48]}
{[%emt 00:00:59]} Be7 {[%clk 01:25:53]} {[%emt 00:00:33]} 8. e3 {[%clk
01:32:12]} {[%emt 00:00:06]} O-O {[%clk 01:25:38]} {[%emt 00:00:43]} 9. Bd3
{[%clk 01:32:07]} {[%emt 00:00:37]} Re8 {[%clk 01:25:48]} {[%emt 00:00:20]} 10.
Nge2 {[%clk 01:29:10]} {[%emt 00:03:28]} a5 {[%clk 01:25:52]} {[%emt 00:00:26]}
11. O-O {[%clk 01:28:37]} {[%emt 00:01:02]} Nbd7 {[%clk 01:25:43]} {[%emt
00:00:40]} 12. f3 {[%clk 01:24:47]} {[%emt 00:04:21]} b5 {[%clk 01:15:33]}
{[%emt 00:10:39]} 13. e4 {[%clk 01:11:24]} {[%emt 00:13:52]} dxe4 {[%clk
01:09:01]} {[%emt 00:07:02]} 14. fxe4 {[%clk 01:04:35]} {[%emt 00:07:20]} Ng4
{[%clk 01:00:13]} {[%emt 00:09:18]} 15. Bxe7 {[%clk 01:01:09]} {[%emt
00:03:57]} Qxe7 {[%clk 01:00:11]} {[%emt 00:00:31]} 16. Qd2 {[%clk 00:57:39]}
{[%emt 00:04:00]} b4 {[%clk 00:47:39]} {[%emt 00:13:03]} 17. Na4 {[%clk
00:55:46]} {[%emt 00:02:23]} Ba6 {[%clk 00:38:18]} {[%emt 00:09:52]} 18. Bxa6
{[%clk 00:53:49]} {[%emt 00:02:27]} Rxa6 {[%clk 00:38:18]} {[%emt 00:00:29]} 19.
e5 {[%clk 00:53:13]} {[%emt 00:01:06]} c5 {[%clk 00:25:02]} {[%emt 00:13:47]}
20. h3 {[%clk 00:38:41]} {[%emt 00:15:01]} Ngf6 {[%clk 00:24:25]} {[%emt
00:01:07]} 21. Nf4 {[%clk 00:35:37]} {[%emt 00:03:34]} Nh7 {[%clk 00:24:23]}
{[%emt 00:00:32]} 22. Qd3 {[%clk 00:34:22]} {[%emt 00:01:45]} Ra7 {[%clk
00:22:52]} {[%emt 00:02:02]} 23. Rae1 {[%clk 00:32:49]} {[%emt 00:02:02]} cxd4
{[%clk 00:20:49]} {[%emt 00:02:34]} 24. Qxd4 {[%clk 00:32:48]} {[%emt
00:00:31]} Ndf8 {[%clk 00:19:48]} {[%emt 00:01:31]} 25. Nd5 {[%clk 00:30:16]}
{[%emt 00:03:03]} Qd7 {[%clk 00:18:02]} {[%emt 00:02:16]} 26. Nab6 {[%clk
00:30:20]} {[%emt 00:00:26]} Ne6 {[%clk 00:17:38]} {[%emt 00:00:54]} 27. Qc4
{[%clk 00:29:09]} {[%emt 00:01:42]} Qd8 {[%clk 00:16:13]} {[%emt 00:01:55]} 28.
Qc6 {[%clk 00:27:42]} {[%emt 00:01:56]} Nd4 {[%clk 00:15:30]} {[%emt 00:01:14]}
29. Qc4 {[%clk 00:26:50]} {[%emt 00:01:22]} Ne6 {[%clk 00:15:35]} {[%emt
00:00:26]} 30. Qc6 {[%clk 00:26:50]} {[%emt 00:00:30]} Nd4 {[%clk 00:15:58]}
{[%emt 00:00:06]} 31. Qc4 {[%clk 00:22:57]} {[%emt 00:04:24]} Ne6 {[%clk
00:16:04]} {[%emt 00:00:22]} 1/2-1/2

[Event "Hull 4NCL GM Tournament"]
[Site "Hull University, Hull, UK"]
[Date "2021.10.23"]
[Round "7.5"]
[White "Jackson, James P"]
[Black "Clarke, Brandon G I"]
[Result "0-1"]
[TimeControl "90+30"]
[WhiteElo "2386"]
[BlackElo "2442"]

1. e4 {[%clk 01:28:57]} {[%emt 00:02:01]} c5 {[%clk 01:29:25]} {[%emt
00:01:29]} 2. Nf3 {[%clk 01:29:07]} {[%emt 00:00:27]} d6 {[%clk 01:29:38]}
{[%emt 00:00:18]} 3. d4 {[%clk 01:29:32]} {[%emt 00:00:06]} cxd4 {[%clk
01:30:01]} {[%emt 00:00:06]} 4. Nxd4 {[%clk 01:29:57]} {[%emt 00:00:05]} Nf6
{[%clk 01:30:24]} {[%emt 00:00:06]} 5. Nc3 {[%clk 01:30:22]} {[%emt 00:00:05]}
a6 {[%clk 01:30:49]} {[%emt 00:00:06]} 6. f3 {[%clk 01:30:47]} {[%emt
00:00:05]} e5 {[%clk 01:29:28]} {[%emt 00:01:51]} 7. Nb3 {[%clk 01:31:12]}
{[%emt 00:00:06]} Be7 {[%clk 01:28:59]} {[%emt 00:00:59]} 8. Be3 {[%clk
01:31:34]} {[%emt 00:00:07]} Be6 {[%clk 01:29:19]} {[%emt 00:00:09]} 9. g4
{[%clk 01:27:04]} {[%emt 00:05:01]} d5 {[%clk 01:29:09]} {[%emt 00:00:40]} 10.
g5 {[%clk 01:25:20]} {[%emt 00:02:14]} d4 {[%clk 01:29:15]} {[%emt 00:00:24]}
11. gxf6 {[%clk 01:25:45]} {[%emt 00:00:06]} Bxf6 {[%clk 01:29:29]} {[%emt
00:00:15]} 12. Bf2 {[%clk 01:17:37]} {[%emt 00:08:38]} dxc3 {[%clk 01:29:29]}
{[%emt 00:00:30]} 13. Qxd8+ {[%clk 01:18:00]} {[%emt 00:00:07]} Bxd8 {[%clk
01:29:23]} {[%emt 00:00:36]} 14. bxc3 {[%clk 01:18:24]} {[%emt 00:00:07]} Nd7
{[%clk 01:27:53]} {[%emt 00:02:00]} 15. Nc5 {[%clk 01:12:19]} {[%emt 00:06:35]}
Ba5 {[%clk 00:50:46]} {[%emt 00:37:37]} 16. Nxe6 {[%clk 01:05:41]} {[%emt
00:07:08]} fxe6 {[%clk 00:47:53]} {[%emt 00:03:23]} 17. O-O-O {[%clk 01:04:13]}
{[%emt 00:01:58]} Rf8 {[%clk 00:41:53]} {[%emt 00:06:29]} 18. Rd3 {[%clk
01:04:13]} {[%emt 00:00:30]} Rc8 {[%clk 00:41:44]} {[%emt 00:00:39]} 19. Kb2
{[%clk 00:51:48]} {[%emt 00:12:56]} Rxc3 {[%clk 00:40:59]} {[%emt 00:01:15]} 20.
Be2 {[%clk 00:49:42]} {[%emt 00:02:36]} Rxd3 {[%clk 00:40:44]} {[%emt
00:00:45]} 21. cxd3 {[%clk 00:50:05]} {[%emt 00:00:06]} Bb6 {[%clk 00:40:45]}
{[%emt 00:00:29]} 22. Bxb6 {[%clk 00:49:02]} {[%emt 00:01:34]} Nxb6 {[%clk
00:41:13]} {[%emt 00:00:02]} 23. Kc2 {[%clk 00:49:03]} {[%emt 00:00:28]} Nc8
{[%clk 00:39:45]} {[%emt 00:01:57]} 24. Rg1 {[%clk 00:48:17]} {[%emt 00:01:17]}
Kf7 {[%clk 00:39:21]} {[%emt 00:00:54]} 25. Kd2 {[%clk 00:47:40]} {[%emt
00:01:07]} Nd6 {[%clk 00:38:09]} {[%emt 00:01:41]} 26. a4 {[%clk 00:30:53]}
{[%emt 00:17:18]} Rc8 {[%clk 00:37:25]} {[%emt 00:01:13]} 27. h4 {[%clk
00:29:21]} {[%emt 00:02:03]} Kf6 {[%clk 00:36:56]} {[%emt 00:00:59]} 28. Rb1
{[%clk 00:27:20]} {[%emt 00:02:31]} Rc6 {[%clk 00:36:34]} {[%emt 00:00:51]} 29.
Ke3 {[%clk 00:26:55]} {[%emt 00:00:55]} Rc2 {[%clk 00:35:11]} {[%emt 00:01:51]}
30. Rb6 {[%clk 00:22:48]} {[%emt 00:04:39]} Ke7 {[%clk 00:35:13]} {[%emt
00:00:28]} 31. Bd1 {[%clk 00:22:37]} {[%emt 00:00:40]} Rh2 {[%clk 00:33:16]}
{[%emt 00:02:26]} 32. f4 {[%clk 00:21:30]} {[%emt 00:01:38]} exf4+ {[%clk
00:28:32]} {[%emt 00:05:14]} 33. Kxf4 {[%clk 00:21:55]} {[%emt 00:00:06]} Rxh4+
{[%clk 00:28:40]} {[%emt 00:00:22]} 34. Kg3 {[%clk 00:15:05]} {[%emt 00:07:20]}
Rh1 {[%clk 00:28:44]} {[%emt 00:00:24]} 35. Bf3 {[%clk 00:15:24]} {[%emt
00:00:12]} Ra1 {[%clk 00:27:24]} {[%emt 00:01:50]} 36. e5 {[%clk 00:13:22]}
{[%emt 00:02:33]} Nf5+ {[%clk 00:27:48]} {[%emt 00:00:05]} 37. Kf2 {[%clk
00:13:41]} {[%emt 00:00:11]} Ra2+ {[%clk 00:28:09]} {[%emt 00:00:10]} 38. Ke1
{[%clk 00:13:59]} {[%emt 00:00:12]} Rxa4 {[%clk 00:27:53]} {[%emt 00:00:46]} 39.
Rxb7+ {[%clk 00:14:21]} {[%emt 00:00:07]} Kf8 {[%clk 00:27:50]} {[%emt
00:00:31]} 40. Be4 {[%clk 00:13:41]} {[%emt 00:01:11]} Ne7 {[%clk 00:21:13]}
{[%emt 00:07:07]} 41. Kd2 {[%clk 00:11:04]} {[%emt 00:03:08]} h5 {[%clk
00:15:20]} {[%emt 00:06:22]} 42. Ke3 {[%clk 00:10:04]} {[%emt 00:01:30]} a5
{[%clk 00:13:14]} {[%emt 00:02:37]} 43. d4 {[%clk 00:03:52]} {[%emt 00:06:42]}
Rb4 {[%clk 00:13:19]} {[%emt 00:00:25]} 44. Ra7 {[%clk 00:03:49]} {[%emt
00:00:34]} a4 {[%clk 00:13:38]} {[%emt 00:00:11]} 45. Kd3 {[%clk 00:03:24]}
{[%emt 00:00:55]} h4 {[%clk 00:13:18]} {[%emt 00:00:50]} 46. Kc3 {[%clk
00:03:21]} {[%emt 00:00:34]} Rb3+ {[%clk 00:13:34]} {[%emt 00:00:14]} 47. Kc4
{[%clk 00:03:46]} {[%emt 00:00:05]} Re3 {[%clk 00:13:55]} {[%emt 00:00:08]} 48.
Bh1 {[%clk 00:02:09]} {[%emt 00:02:07]} a3 {[%clk 00:12:38]} {[%emt 00:01:48]}
49. Kc5 {[%clk 00:01:24]} {[%emt 00:01:14]} Rc3+ {[%clk 00:12:07]} {[%emt
00:01:00]} 50. Kb4 {[%clk 00:01:13]} {[%emt 00:00:42]} Rh3 {[%clk 00:09:19]}
{[%emt 00:03:18]} 51. Ba8 {[%clk 00:01:28]} {[%emt 00:00:16]} g5 {[%clk
00:08:11]} {[%emt 00:01:37]} 52. Bb7 {[%clk 00:00:59]} {[%emt 00:00:59]} g4
{[%clk 00:06:42]} {[%emt 00:01:59]} 53. Kc5 {[%clk 00:00:59]} {[%emt 00:00:30]}
Rb3 {[%clk 00:04:48]} {[%emt 00:02:24]} 54. d5 {[%clk 00:00:33]} {[%emt
00:00:56]} exd5 {[%clk 00:04:44]} {[%emt 00:00:33]} 55. Bxd5 {[%clk 00:00:40]}
{[%emt 00:00:23]} Nxd5 {[%clk 00:03:08]} {[%emt 00:02:06]} 56. Kxd5 {[%clk
00:01:05]} {[%emt 00:00:05]} h3 {[%clk 00:03:12]} {[%emt 00:00:26]} 0-1

[ePGN "0.1;DGT LiveChess/2.2.5"]

[Event "Hull 4NCL GM Tournament"]
[Site "Hull University, Hull, UK"]
[Date "2021.10.24"]
[Round "8.3"]
[White "Wadsworth, Matthew J"]
[Black "Fodor, Tamas Jr."]
[Result "0-1"]
[TimeControl "90+30"]
[WhiteElo "2425"]
[BlackElo "2524"]

1. c4 {[%clk 01:27:54]} {[%emt 00:03:06]} e5 {[%clk 01:30:54]} {[%emt
00:00:07]} 2. g3 {[%clk 01:28:15]} {[%emt 00:00:09]} Nc6 {[%clk 01:31:18]}
{[%emt 00:00:05]} 3. Nc3 {[%clk 01:28:40]} {[%emt 00:00:05]} Bc5 {[%clk
01:31:44]} {[%emt 00:00:04]} 4. Bg2 {[%clk 01:29:03]} {[%emt 00:00:07]} d6
{[%clk 01:32:08]} {[%emt 00:00:06]} 5. e3 {[%clk 01:29:10]} {[%emt 00:00:24]}
a6 {[%clk 01:32:33]} {[%emt 00:00:05]} 6. Nge2 {[%clk 01:29:29]} {[%emt
00:00:10]} Ba7 {[%clk 01:32:57]} {[%emt 00:00:06]} 7. b3 {[%clk 01:29:39]}
{[%emt 00:00:21]} h5 {[%clk 01:33:21]} {[%emt 00:00:06]} 8. Bb2 {[%clk
01:28:31]} {[%emt 00:01:38]} h4 {[%clk 01:31:05]} {[%emt 00:02:46]} 9. d4
{[%clk 01:27:59]} {[%emt 00:01:02]} Bf5 {[%clk 01:25:13]} {[%emt 00:06:21]} 10.
Qd2 {[%clk 01:14:16]} {[%emt 00:14:15]} Qd7 {[%clk 01:23:07]} {[%emt 00:02:35]}
11. O-O-O {[%clk 01:10:52]} {[%emt 00:03:53]} O-O-O {[%clk 01:22:27]} {[%emt
00:01:09]} 12. Bxc6 {[%clk 01:03:16]} {[%emt 00:08:06]} Qxc6 {[%clk 01:22:51]}
{[%emt 00:00:06]} 13. dxe5 {[%clk 01:03:41]} {[%emt 00:00:06]} hxg3 {[%clk
01:23:13]} {[%emt 00:00:08]} 14. Nxg3 {[%clk 01:02:47]} {[%emt 00:01:24]} Bg4
{[%clk 01:23:09]} {[%emt 00:00:34]} 15. Nd5 {[%clk 00:56:58]} {[%emt 00:06:19]}
Bxd1 {[%clk 01:22:59]} {[%emt 00:00:40]} 16. Rxd1 {[%clk 00:57:26]} {[%emt
00:00:02]} Rxh2 {[%clk 01:18:25]} {[%emt 00:05:04]} 17. Nf5 {[%clk 00:51:49]}
{[%emt 00:06:08]} Qd7 {[%clk 01:08:25]} {[%emt 00:10:29]} 18. exd6 {[%clk
00:51:00]} {[%emt 00:01:21]} cxd6 {[%clk 01:07:46]} {[%emt 00:01:09]} 19. Qa5
{[%clk 00:28:41]} {[%emt 00:22:49]} Rxf2 {[%clk 00:56:04]} {[%emt 00:12:10]} 20.
e4 {[%clk 00:28:44]} {[%emt 00:00:29]} Rxb2 {[%clk 00:44:42]} {[%emt 00:11:52]}
21. Kxb2 {[%clk 00:28:23]} {[%emt 00:00:51]} g6 {[%clk 00:44:44]} {[%emt
00:00:27]} 22. Nd4 {[%clk 00:16:46]} {[%emt 00:12:08]} Kb8 {[%clk 00:40:26]}
{[%emt 00:04:48]} 23. Nb4 {[%clk 00:12:00]} {[%emt 00:05:16]} Ne7 {[%clk
00:35:01]} {[%emt 00:05:55]} 24. Qg5 {[%clk 00:10:32]} {[%emt 00:01:59]} Re8
{[%clk 00:33:06]} {[%emt 00:02:25]} 25. Qf6 {[%clk 00:07:37]} {[%emt 00:03:24]}
Nc8 {[%clk 00:30:43]} {[%emt 00:02:53]} 26. e5 {[%clk 00:05:32]} {[%emt
00:02:36]} a5 {[%clk 00:27:26]} {[%emt 00:03:46]} 27. Nd5 {[%clk 00:03:58]}
{[%emt 00:02:04]} Rxe5 {[%clk 00:26:35]} {[%emt 00:01:20]} 28. Nc2 {[%clk
00:03:23]} {[%emt 00:01:06]} g5 {[%clk 00:22:46]} {[%emt 00:04:19]} 29. Rh1
{[%clk 00:03:11]} {[%emt 00:00:42]} g4 {[%clk 00:22:25]} {[%emt 00:00:51]} 30.
Rh8 {[%clk 00:02:28]} {[%emt 00:01:13]} Re8 {[%clk 00:21:57]} {[%emt 00:00:58]}
31. Rh7 {[%clk 00:02:22]} {[%emt 00:00:36]} Rg8 {[%clk 00:13:49]} {[%emt
00:08:38]} 32. Rxf7 {[%clk 00:02:33]} {[%emt 00:00:18]} Qe8 {[%clk 00:13:52]}
{[%emt 00:00:27]} 33. Ne7 {[%clk 00:01:44]} {[%emt 00:01:19]} Nxe7 {[%clk
00:13:07]} {[%emt 00:01:16]} 34. Qxd6+ {[%clk 00:02:03]} {[%emt 00:00:10]} Ka8
{[%clk 00:13:33]} {[%emt 00:00:04]} 35. Rxe7 {[%clk 00:02:12]} {[%emt
00:00:21]} Qc6 {[%clk 00:13:51]} {[%emt 00:00:10]} 36. Qxc6 {[%clk 00:00:49]}
{[%emt 00:01:56]} bxc6 {[%clk 00:14:17]} {[%emt 00:00:04]} 37. Re2 {[%clk
00:00:48]} {[%emt 00:00:31]} g3 {[%clk 00:14:41]} {[%emt 00:00:06]} 38. Ne1
{[%clk 00:00:55]} {[%emt 00:00:23]} Bf2 {[%clk 00:13:42]} {[%emt 00:01:28]} 39.
Ng2 {[%clk 00:00:46]} {[%emt 00:00:40]} Rh8 {[%clk 00:13:00]} {[%emt 00:01:12]}
40. Ka3 {[%clk 00:00:39]} {[%emt 00:00:38]} Rh2 {[%clk 00:11:15]} {[%emt
00:02:15]} 41. Ne3 {[%clk 00:00:50]} {[%emt 00:00:19]} Kb7 {[%clk 00:10:42]}
{[%emt 00:01:03]} 42. b4 {[%clk 00:00:52]} {[%emt 00:00:29]} g2 {[%clk
00:09:47]} {[%emt 00:01:24]} 43. Nxg2 {[%clk 00:00:48]} {[%emt 00:00:34]} Rxg2
{[%clk 00:10:09]} {[%emt 00:00:07]} 44. Rb2 {[%clk 00:00:37]} {[%emt 00:00:42]}
axb4+ {[%clk 00:09:57]} {[%emt 00:00:42]} 45. Rxb4+ {[%clk 00:01:02]} {[%emt
00:00:05]} Kc7 {[%clk 00:10:18]} {[%emt 00:00:09]} 46. Ra4 {[%clk 00:00:57]}
{[%emt 00:00:35]} Bc5+ {[%clk 00:09:56]} {[%emt 00:00:50]} 47. Kb3 {[%clk
00:01:22]} {[%emt 00:00:05]} Rg3+ {[%clk 00:10:21]} {[%emt 00:00:05]} 48. Kc2
{[%clk 00:01:45]} {[%emt 00:00:07]} Ra3 {[%clk 00:10:40]} {[%emt 00:00:11]} 0-1